[Event "Silver Lake Festival 2022"]
[Site "Veliko Gradiste"]
[Date "2022.06.21"]
[Round "4.3"]
[White "Song, Raymond"]
[Black "Mohammad Nubairshah Shaikh"]
[Result "1/2-1/2"]
[ECO "D10"]
[WhiteElo "2485"]
[BlackElo "2443"]
[Annotator "TA"]
[PlyCount "102"]
[EventDate "2022.06.16"]
[EventType "swiss"]
[EventCountry "SRB"]
[SourceTitle "playchess.com"]
[Source "ChessBase"]
[SourceQuality "1"]
[TimeControl "5400+30"]

{[%evp 9,102,18,13,10,20,14,25,8,19,16,20,11,6,31,16,17,25,25,10,15,29,19,27,27,14,8,31,23,19,0,0,0,0,-6,0,0,6,-11,44,20,54,17,20,0,47,0,0,0,0,0,0,-25,-30,-32,-22,-25,-17,-14,14,8,1,-17,0,-75,29,29,147,0,0,0,0,5,2,0,18,16,46,0,0,0,0,0,0,0,0,0,0,0,0,0,0,0,0,0,0]} 1. d4 {[%emt 0:00:03]} d5 {[%emt 0:09:06][%cal Bd7d5,Bd5c4][%mdl 32]} 2. c4 {[%emt 0:00:07]} c6 {[%emt 0:00:04]} 3. Nc3 {[%emt 0:00:06]} dxc4 {[%emt 0:00:13]} 4. e3 {[%emt 0:00:08]} b5 {[%emt 0:00:18]} 5. a4 {[%emt 0:00:07]} b4 {[%emt 0:00:02]} 6. Ne4 {[%emt 0:00:07] D10: Slav Defence: 3 cxd5 (without early Nf3) and 3 Nc3.} Qd5 {[%emt 0:00:58]} 7. Nd2 {[%emt 0:00:07]} c3 {[%emt 0:00:05]} 8. bxc3 {[%emt 0:00:04] White has an edge.} bxc3 {[%emt 0:00:02]} 9. Nb1 {[%emt 0:00:06]} Qa5 {[%emt 0:00:33]} 10. Qc2 {[%emt 0:00:07]} Na6 {[%emt 0:00:21] aiming for ...Nb4.} 11. Qxc3 {[%emt 0:00:05]} Nb4 {[%emt 0:00:16]} 12. Bd2 {[%emt 0:00:07]} e6 {[%emt 0:00:09]} 13. Nf3 {[%emt 0:00:05]} Nf6 {[%emt 0:00:21]} 14. Bc4 {[%emt 0:00:06]} Be7 {[%emt 0:08:01]} 15. O-O {[%emt 0:00:07]} O-O {[%emt 0:00:09]} 16. Rc1 {[%emt 0:00:05]} Rb8 {[%emt 0:07:15]} 17. Be1 {[%emt 0:00:38] [#]} c5 $146 {[%emt 0:06:49]} ({Predecessor:} 17... Qh5 18. Nbd2 c5 19. dxc5 Qxc5 20. Qe5 Bb7 21. Qxc5 Bxc5 22. Nb3 Be7 23. Ne5 Nc6 {1-0 (60) Emourlov,E (1956)-Preussner,M (2041) ICCF email 2019}) 18. Nbd2 {[%emt 0:02:34]} cxd4 {[%emt 0:01:27]} 19. Nxd4 {[%emt 0:00:37]} Bb7 {[%emt 0:01:11]} 20. Qb3 {[%emt 0:16:36]} Qh5 {[%emt 0:05:11]} 21. Qd1 {[%emt 0:12:33]} (21. N2f3 Be4 22. Qd1 e5 $15) 21... Qg6 {[%emt 0:03:23][%csl Gb7][%cal Rg6g2]} 22. N2f3 {[%emt 0:00:18]} Rfd8 {[%emt 0:04:31][%cal Oe6e5]} 23. Qe2 {[%emt 0:03:43]} Nh5 {[%emt 0:18:14]} (23... Nfd5 $11) 24. Qf1 {[%emt 0:03:19]} a5 {[%emt 0:11:45]} 25. Ne5 {[%emt 0:06:10]} Qe4 {[%emt 0:02:13]} 26. Bxb4 {[%emt 0:09:34]} (26. Ndf3 {seems wilder.} Bf6 27. Bc3 Rbc8 28. Rab1) 26... Bxb4 {[%emt 0:02:20] [#]} (26... axb4 $11 27. Nef3 Qg6) 27. Nxf7 $1 {[%emt 0:01:02]} Kxf7 $11 {[%emt 0:01:26]} 28. Nxe6 {[%emt 0:00:15]} Ke7 {[%emt 0:00:41] Strongly threatening ...Rd6.} 29. Nxd8 {[%emt 0:00:11]} Rxd8 {[%emt 0:00:02]} 30. Be2 {[%emt 0:00:27] The board is on fire.} Qe5 $36 {[%emt 0:06:24][%mdl 2048] Against Rc7+. Black has the initiative.} 31. Bxh5 {[%emt 0:04:42]} Bd6 {[%emt 0:00:22][%csl Gd6][%cal Re5h2]} 32. f4 $1 {[%emt 0:08:06]} Qxh5 {[%emt 0:00:04]} 33. Rab1 {[%emt 0:01:12]} Qd5 {[%emt 0:02:09]} 34. Rb5 {[%emt 0:03:25]} Qe4 {[%emt 0:00:04][%csl LRa4,LRe3]} 35. Qf2 {[%emt 0:03:44]} Kf8 {[%emt 0:08:11]} 36. Rxa5 {[%emt 0:01:20]} (36. Qf3 $11 Ba8 37. Qxe4 (37. Rxa5 Bb4 $15) 37... Bxe4 38. Rd1 (38. Rxa5 Bb4 $15)) 36... Bc7 {[%emt 0:02:37]} 37. Rb5 {[%emt 0:02:16] Threatens to win with Qf3.} Bc6 {[%emt 0:00:08] [#]} (37... Bd6 $11 {keeps the balance.}) 38. Rb2 {[%emt 0:02:51]} (38. Qf3 $1 $16 {[%cal Rf3e4]} Qxf3 39. Rf5+ (39. gxf3 Bxb5 40. Rxc7 Bxa4 $17) 39... Ke7 40. gxf3) 38... Bxa4 {[%emt 0:00:11]} 39. Qf3 {[%emt 0:01:21]} Qxf3 {[%emt 0:00:45]} 40. gxf3 {[%emt 0:00:02]} Bd6 {[%emt 0:00:20]} 41. Rd2 {[%emt 0:01:50]} Ke7 {[%emt 0:00:23][%cal Od6f4]} 42. Rc4 {[%emt 0:00:34]} Bb3 {[%emt 0:01:44] This bishop pair is nice.} 43. Rcd4 {[%emt 0:00:12]} (43. Re4+ $14 {was preferrable.} Kd7 44. Red4 (44. Rb4 Bf7 $14)) 43... Be6 {[%emt 0:00:29] The position is equal.} 44. Kg2 {[%emt 0:00:19]} Bc7 {[%emt 0:00:41]} 45. Rxd8 {[%emt 0:00:05]} Bxd8 {[%emt 0:00:02]} 46. Rc2 {[%emt 0:03:21]} Kf7 {[%emt 0:00:52]} 47. Rc6 {[%emt 0:01:01]} h5 {[%emt 0:00:50]} 48. Ra6 {[%emt 0:01:11]} Bf6 {[%emt 0:00:16]} 49. Ra7+ {[%emt 0:00:35]} Kf8 {[%emt 0:00:06]} 50. Kg3 {[%emt 0:00:38]} g6 {[%emt 0:00:43]} 51. Ra5 {[%emt 0:02:12]} Kg8 {[%emt 0:00:14] Weighted Error Value: White=0.13 (very precise) /Black=0.17 (very precise)} 1/2-1/2

[Event "Silver Lake Festival 2022"]
[Site "Veliko Gradiste"]
[Date "2022.06.21"]
[Round "4.4"]
[White "Tyurin, Artem"]
[Black "Ramoutar, Alan-Safar"]
[Result "1/2-1/2"]
[ECO "A19"]
[WhiteElo "2174"]
[BlackElo "2477"]
[Annotator "TA"]
[PlyCount "127"]
[EventDate "2022.06.16"]
[EventType "swiss"]
[EventCountry "SRB"]
[SourceTitle "playchess.com"]
[Source "ChessBase"]
[SourceQuality "1"]
[TimeControl "5400+30"]

{[%evp 20,127,23,0,12,19,22,6,18,10,15,25,29,14,25,19,34,28,41,21,23,-19,-17,-17,-22,-32,-24,-28,0,0,0,0,0,0,0,0,0,-175,-175,-180,-173,-234,-218,-204,-57,-52,-63,-109,-107,-224,-222,-174,-175,-614,-598,-585,-540,-487,-354,-439,-223,-189,-166,-122,-108,-153,-3,-3,-3,-3,-3,-16,0,0,0,-62,0,0,0,0,0,0,0,-29962,-29943,-12837,0,0,0,0,0,0,0,0,0,0,0,0,0,0,0,0,0,0,0,0,6,6,6,6]} 1. c4 {[%emt 0:00:03]} e6 {[%emt 0:00:56]} 2. Nc3 {[%emt 0:00:13]} Nf6 {[%emt 0:00:16]} 3. e4 {[%emt 0:00:13][%cal Be2e4,Be4e5][%mdl 32]} c5 {[%emt 0:00:13]} 4. e5 {[%emt 0:02:58]} Ng8 {[%emt 0:00:13]} 5. Nf3 {[%emt 0:00:09]} Nc6 {[%emt 0:00:24]} 6. d4 {[%emt 0:00:04]} cxd4 {[%emt 0:00:18]} 7. Nxd4 {[%emt 0:00:02]} Nxe5 {[%emt 0:00:12]} 8. Ndb5 {[%emt 0:00:25]} a6 {[%emt 0:00:12]} 9. Nd6+ {[%emt 0:00:11]} Bxd6 {[%emt 0:00:07]} 10. Qxd6 {[%emt 0:00:06]} f6 {[%emt 0:00:16]} 11. Be3 {[%emt 0:01:24][%mdl 1024] White has compensation.} Ne7 {[%emt 0:00:31] A19: English Opening: Flohr-Mikenas System with 3...c5.} 12. Bb6 {[%emt 0:00:46]} Nf5 {[%emt 0:00:09]} 13. Qb4 {[%emt 0:03:04]} Nc6 {[%emt 0:00:46]} 14. Qc5 {[%emt 0:00:30]} d6 {[%emt 0:00:55]} 15. Bxd8 {[%emt 0:02:10]} dxc5 {[%emt 0:00:08]} 16. Bb6 {[%emt 0:00:03]} Ne5 {[%emt 0:00:16]} 17. Bxc5 {[%emt 0:16:19]} g5 $1 {[%emt 0:01:28][%mdl 4] outshines the older 17...Bd7.} 18. Be2 {[%emt 0:12:26]} h5 {[%emt 0:00:05][%cal Bh7h5,Bh5h4][%mdl 32]} 19. Ne4 {[%emt 0:01:51]} Kf7 {[%emt 0:00:28] [#]} 20. Ng3 $146 {[%emt 0:03:18]} ({Predecessor:} 20. O-O Bd7 21. b4 Bc6 22. Nd6+ Nxd6 23. Bxd6 Ng6 24. b5 axb5 25. cxb5 Bd5 26. Rfc1 {1-0 (57) Keymer,V (2655)-Haria,R (2499) Germany 2022}) 20... h4 {[%emt 0:21:30]} 21. Nxf5 {[%emt 0:04:58]} exf5 {[%emt 0:00:40]} 22. f4 {[%emt 0:13:39]} gxf4 {[%emt 0:05:19][%cal Ob7b6]} 23. O-O {[%emt 0:00:13]} Bd7 {[%emt 0:17:56]} 24. Rxf4 {[%emt 0:01:46]} Rag8 {[%emt 0:00:49]} 25. Raf1 {[%emt 0:06:41]} Bc6 {[%emt 0:06:55]} 26. R1f2 {[%emt 0:00:43]} Be4 {[%emt 0:01:08]} 27. Bd4 {[%emt 0:02:47][%cal Of4e4] This bishop pair is nice.} Ke6 {[%emt 0:05:25]} 28. Bd1 $2 {[%emt 0:02:28]} (28. h3 $11 {and White has nothing to worry.}) 28... Rd8 $19 {[%emt 0:04:55]} 29. Rd2 {[%emt 0:03:36]} Nd3 $1 $36 {[%emt 0:00:34][%mdl 2048] Black is really pushing.} 30. Bb6 {[%emt 0:00:58]} (30. Rxd3 $142 Bxd3 31. Bb3) 30... Rd6 $1 {[%emt 0:13:09]} 31. c5 {[%emt 0:01:03] [#]} Nxc5 {[%emt 0:01:38][%mdl 512]} 32. Rxd6+ $15 {[%emt 0:02:29]} Kxd6 {[%emt 0:00:01]} 33. Bxc5+ {[%emt 0:01:20]} (33. Rf2 $15) 33... Kxc5 $19 {[%emt 0:00:02][%mdl 4096] Endgame KRB-KRB} 34. Bf3 {[%emt 0:00:11]} (34. Bg4 $17 {might work better.}) 34... Kd4 $1 {[%emt 0:02:40]} 35. Kf2 {[%emt 0:01:08] [#]} Rc8 $1 {[%emt 0:10:45]} ({Stronger than} 35... Ke5 36. Ke3 $15) 36. Bxe4 {[%emt 0:00:06]} (36. Rxh4 Rc2+ 37. Kg3) 36... fxe4 {[%emt 0:00:11]} 37. Rxh4 {[%emt 0:00:06] KR-KR} Rc2+ {[%emt 0:01:23]} 38. Kg3 {[%emt 0:00:04]} Rxb2 {[%emt 0:00:23]} 39. Rh7 {[%emt 0:02:32]} f5 {[%emt 0:02:17]} (39... e3 $142 40. h4 Rxa2) 40. h4 {[%emt 0:01:07][%cal Bh2h4,Bh4h5,Bh5h6,Bh6h7][%mdl 32]} Ke3 {[%emt 0:00:30]} ({Weaker is} 40... Rxa2 41. Rxb7 Ra1 42. Rd7+ Ke3 43. Rf7) 41. Rf7 {[%emt 0:00:38]} Rxa2 {[%emt 0:04:57][%cal Of5f4]} 42. Rxf5 {[%emt 0:01:43]} Kd4 {[%emt 0:00:00]} (42... Rd2 $17 {Threatens to win with ...Rd6.} 43. Ra5 Rd6) 43. Rf7 $11 {[%emt 0:02:20]} b5 {[%emt 0:00:00]} 44. h5 {[%emt 0:00:21]} Ra1 {[%emt 0:00:00] aiming for ...Rh1.} 45. Kh2 {[%emt 0:03:12] Prevents Rh1+.} Rc1 {[%emt 0:00:00] Strongly threatening ...e3.} 46. g4 {[%emt 0:00:20]} e3 {[%emt 0:00:15]} 47. Re7 {[%emt 0:01:13]} ({Better is} 47. Rd7+ $11 Ke5 48. h6) 47... b4 {[%emt 0:00:48]} (47... Rc6 $1 $15 48. Kg3 b4) 48. h6 $1 {[%emt 0:01:21]} b3 {[%emt 0:00:25] Hoping for ...b2.} 49. Rd7+ {[%emt 0:05:44]} Ke4 {[%emt 0:00:19] ( -> ...b2)} 50. h7 {[%emt 0:00:07]} Rc8 {[%emt 0:00:16]} 51. Kg3 $2 {[%emt 0:01:11][%mdl 8192]} (51. Re7+ $11 Kd3 52. Rb7) 51... b2 {[%emt 0:00:23]} 52. Rb7 {[%emt 0:02:12] [#]} Rh8 $2 {[%emt 0:00:18]} ({Black should play} 52... e2 $1 $19 {[%cal Re2e1]} 53. Kf2 Kd3) 53. Rxb2 {[%emt 0:00:46] The position is equal.} Rxh7 {[%emt 0:00:05]} 54. Ra2 {[%emt 0:00:17]} Rh6 {[%emt 0:02:09]} 55. Ra4+ {[%emt 0:00:04]} Kd3 {[%emt 0:00:17]} 56. Ra3+ {[%emt 0:00:07]} Kd4 {[%emt 0:00:27]} 57. Ra4+ {[%emt 0:00:08]} Kd3 {[%emt 0:00:46]} 58. Ra3+ {[%emt 0:00:04]} Kd2 {[%emt 0:00:16] And now ...Re6 would win.} 59. Ra2+ {[%emt 0:00:04]} Kd1 {[%emt 0:00:28] White must now prevent ...Re6.} 60. Ra1+ {[%emt 0:01:23]} Kc2 {[%emt 0:00:08]} 61. Ra2+ {[%emt 0:00:04]} Kb3 {[%emt 0:00:14]} 62. Re2 {[%emt 0:00:03]} Re6 {[%emt 0:00:18] ...Kc3 is the strong threat.} 63. Kf3 {[%emt 0:00:15]} Rf6+ {[%emt 0:01:13]} 64. Ke4 {[%emt 0:04:43] Weighted Error Value: White=0.40/Black=0.25 (precise)} 1/2-1/2

[Event "Silver Lake Festival 2022"]
[Site "Veliko Gradiste"]
[Date "2022.06.21"]
[Round "4.5"]
[White "Creanga, Robert-Ionut"]
[Black "Sadikhov, Ulvi"]
[Result "0-1"]
[ECO "E93"]
[WhiteElo "2201"]
[BlackElo "2491"]
[Annotator "RC"]
[PlyCount "114"]
[EventDate "2022.06.16"]
[EventType "swiss"]
[EventCountry "SRB"]
[SourceTitle "playchess.com"]
[Source "ChessBase"]
[SourceQuality "1"]
[TimeControl "5400+30"]

1. d4 {[%emt 0:00:05]} Nf6 {[%emt 0:00:12]} 2. c4 {[%emt 0:00:06]} d6 {[%emt 0:00:22]} 3. Nc3 {[%emt 0:01:44]} g6 {[%emt 0:00:32]} 4. e4 {[%emt 0:00:31]} Bg7 {[%emt 0:00:03]} 5. Nf3 {[%emt 0:00:26]} O-O {[%emt 0:00:33]} 6. Be2 {[%emt 0:00:38]} Nbd7 {[%emt 0:00:05]} 7. Be3 {[%emt 0:08:28]} e5 {[%emt 0:01:23]} 8. d5 {[%emt 0:01:33]} Ng4 {[%emt 0:04:50]} 9. Bg5 {[%emt 0:00:38]} f6 {[%emt 0:00:06]} 10. Bh4 {[%emt 0:00:14]} Nh6 {[%emt 0:03:31]} 11. Nd2 {[%emt 0:00:22]} Nf7 {[%emt 0:02:13]} 12. b4 {[%emt 0:17:52]} h5 {[%emt 0:07:13]} 13. h3 {[%emt 0:09:37]} Bh6 {[%emt 0:02:44]} 14. Nb3 {[%emt 0:04:24]} b6 {[%emt 0:04:55]} 15. a4 {[%emt 0:19:21]} Kg7 {[%emt 0:12:00]} 16. a5 {[%emt 0:02:05]} a6 {[%emt 0:01:45]} 17. Na4 {[%emt 0:06:10]} Bg5 {[%emt 0:06:45]} 18. Bg3 {[%emt 0:02:42]} h4 {[%emt 0:01:08]} 19. Bh2 {[%emt 0:00:53]} f5 {[%emt 0:05:33]} 20. exf5 {[%emt 0:06:15]} gxf5 {[%emt 0:00:33]} 21. axb6 {[%emt 0:01:03]} cxb6 {[%emt 0:03:43]} 22. c5 {[%emt 0:03:02]} bxc5 {[%emt 0:02:35]} 23. bxc5 {[%emt 0:00:38]} Nxc5 {[%emt 0:00:58]} 24. Naxc5 {[%emt 0:01:15]} dxc5 {[%emt 0:00:04]} 25. O-O {[%emt 0:03:32]} a5 {[%emt 0:14:57]} 26. Nxc5 {[%emt 0:01:55]} Qd6 {[%emt 0:01:08]} 27. Qc2 {[%emt 0:01:10]} Ra7 {[%emt 0:02:03]} 28. Ne6+ {[%emt 0:01:00]} Bxe6 {[%emt 0:00:19]} 29. dxe6 {[%emt 0:00:12]} Qxe6 {[%emt 0:00:45]} 30. Qc5 {[%emt 0:00:29]} Rfa8 {[%emt 0:03:15]} 31. Bc4 {[%emt 0:01:49]} Qe7 {[%emt 0:01:06]} 32. Qxe7 {[%emt 0:00:49]} Rxe7 {[%emt 0:01:31]} 33. f4 {[%emt 0:01:18]} exf4 {[%emt 0:01:09]} 34. Bxf7 {[%emt 0:01:22]} Kxf7 {[%emt 0:00:51]} 35. Bxf4 {[%emt 0:00:30]} Bf6 {[%emt 0:02:12]} 36. Ra4 {[%emt 0:01:01]} Rd7 {[%emt 0:02:28]} 37. Be3 {[%emt 0:00:48]} Rd3 {[%emt 0:05:39]} 38. Bf2 {[%emt 0:00:53]} Kg6 {[%emt 0:01:16]} 39. Bxh4 {[%emt 0:01:10]} Rd4 {[%emt 0:00:43]} 40. Rf4 {[%emt 0:00:50]} Rxf4 {[%emt 0:02:24]} 41. Rxf4 {[%emt 0:00:08]} Bxh4 {[%emt 0:00:47]} 42. Rxh4 {[%emt 0:00:05]} a4 {[%emt 0:00:04]} 43. Rb4 {[%emt 0:00:28]} a3 {[%emt 0:00:04]} 44. Rb1 {[%emt 0:00:03]} a2 {[%emt 0:00:03]} 45. Ra1 {[%emt 0:00:02]} f4 {[%emt 0:01:14]} 46. Kf2 {[%emt 0:00:37]} Ra3 {[%emt 0:00:04]} 47. Ke2 {[%emt 0:00:43]} Kf5 {[%emt 0:00:09]} 48. Kf2 {[%emt 0:01:31]} Ke4 {[%emt 0:00:07]} 49. Ke2 {[%emt 0:00:20]} Kd4 {[%emt 0:00:31]} 50. h4 {[%emt 0:02:10]} Ke4 {[%emt 0:00:58]} 51. h5 {[%emt 0:00:30]} Kf5 {[%emt 0:00:09]} 52. Kd1 {[%emt 0:00:27]} Kg5 {[%emt 0:00:26]} 53. Kc1 {[%emt 0:00:06]} Kxh5 {[%emt 0:00:16]} 54. Kb2 {[%emt 0:00:06]} Ra8 {[%emt 0:00:26]} 55. Kc3 {[%emt 0:00:07]} Kg4 {[%emt 0:00:16]} 56. Kd4 {[%emt 0:00:04]} Kg3 {[%emt 0:00:10]} 57. Ke4 {[%emt 0:00:04]} Ra4+ {[%emt 0:07:44]} 0-1

[Event "Silver Lake Festival 2022"]
[Site "Veliko Gradiste"]
[Date "2022.06.21"]
[Round "4.6"]
[White "Papaioannou, Dimitrios"]
[Black "Damljanovic, Branko"]
[Result "1/2-1/2"]
[ECO "B30"]
[WhiteElo "2078"]
[BlackElo "2469"]
[Annotator "TA"]
[PlyCount "163"]
[EventDate "2022.06.16"]
[EventType "swiss"]
[EventCountry "SRB"]
[SourceTitle "playchess.com"]
[Source "ChessBase"]
[SourceQuality "1"]
[TimeControl "5400+30"]

{[%evp 10,163,22,20,25,-9,7,14,12,13,11,0,8,15,22,0,4,0,0,0,0,0,0,0,0,0,0,0,0,-47,-52,-42,-50,-60,-55,-64,0,-39,0,0,45,50,40,25,28,0,0,0,0,0,0,0,0,0,0,-13,0,-29,-29,-32,0,0,7,0,0,0,27,34,131,124,121,0,0,0,0,1,1,1,1,1,2,2,2,2,2,2,2,2,2,2,2,2,2,0,70,70,88,88,88,64,42,31,31,0,0,0,0,0,0,0,0,0,0,0,0,0,8,8,8,8,8,8,8,1,13,8,24,0,25,0,0,0,0,0,0,0,0,0,0,0,0,0,0,0,0,0,0,0,0,0,0,0,0,0,0,0]} 1. e4 {[%emt 0:02:31]} c5 {[%emt 0:00:10]} 2. Nc3 {[%emt 0:03:43]} Nc6 {[%emt 0:00:16]} 3. Bb5 {[%emt 0:03:15]} Nd4 {[%emt 0:00:11]} 4. Nf3 {[%emt 0:01:07]} e6 {[%emt 0:00:25]} 5. O-O {[%emt 0:01:24]} a6 {[%emt 0:02:52]} 6. Bd3 {[%emt 0:00:09]} Nc6 {[%emt 0:00:06] B30: Sicilian: 2...Nc6 3 Bb5, lines without ...g6.} 7. Nd5 {[%emt 0:05:03] 7.e5 gains popularity.} g6 {[%emt 0:03:02] [#]} 8. c3 $1 {[%emt 0:07:15]} Bg7 {[%emt 0:00:28] [#]} 9. Re1 $1 {[%emt 0:00:40][%cal Od3c2]} d6 {[%emt 0:04:42]} (9... Nh6 10. Ne3) 10. Ne3 {[%emt 0:00:12]} Nge7 {[%emt 0:00:38]} 11. Bc2 {[%emt 0:00:43]} e5 {[%emt 0:00:23]} 12. b4 {[%emt 0:00:54] [#]} cxb4 $146 {[%emt 0:07:20]} ({Predecessor:} 12... b6 13. a3 O-O 14. Bb3 h6 15. Nd5 Kh7 16. d3 Be6 17. Rb1 Ra7 18. Be3 f5 19. Nxe7 Qxe7 20. Bxe6 Qxe6 21. bxc5 bxc5 {½-½ (25) Gabrielian,A (2464)-Kryakvin,D (2567) Cheliabinsk 2022}) 13. a3 {[%emt 0:03:51]} bxc3 {[%emt 0:00:37]} 14. dxc3 {[%emt 0:00:01]} O-O {[%emt 0:00:54]} 15. a4 {[%emt 0:00:47]} Qc7 {[%emt 0:18:59]} 16. Bb3 {[%emt 0:06:08]} Na5 {[%emt 0:04:45]} 17. Ba2 {[%emt 0:01:28] Hoping for Ba3.} h6 {[%emt 0:02:39]} ({Don't do} 17... Qxc3 18. Ba3 $1 $16) 18. h4 {[%emt 0:08:11]} Be6 {[%emt 0:08:58]} 19. Bxe6 {[%emt 0:04:12]} (19. h5 $11) 19... fxe6 $15 {[%emt 0:00:01]} 20. h5 {[%emt 0:03:19]} gxh5 {[%emt 0:08:47]} 21. Nh4 {[%emt 0:02:30] Inhibits Ng6.} Qc6 {[%emt 0:03:25]} ({Reject} 21... Qxc3 22. Bd2 Qb2 23. Nf3 Rxf3 24. gxf3 $11) 22. Qxh5 {[%emt 0:03:27]} Qe8 {[%emt 0:01:06]} ({But not} 22... Qxc3 23. Ba3 $11) (22... Qxe4 $15 23. f3 Qd3) 23. Qd1 {[%emt 0:04:02]} (23. Qg4 $5 {[%cal Rg4e6]}) 23... Qf7 {[%emt 0:05:36]} 24. Ra2 {[%emt 0:00:43]} Ng6 {[%emt 0:10:28]} 25. Nxg6 {[%emt 0:01:46]} Qxg6 {[%emt 0:00:02]} 26. Qxd6 {[%emt 0:00:57]} Nc6 {[%emt 0:00:02]} 27. Nf5 {[%emt 0:09:35]} Rf7 $1 $36 {[%emt 0:00:50][%mdl 2048] Black is more active.} 28. Nxg7 {[%emt 0:02:18]} Rxg7 {[%emt 0:00:03][%csl Gg7][%cal Rg6g2]} 29. f3 {[%emt 0:01:52]} h5 {[%emt 0:00:31]} 30. Qd2 {[%emt 0:02:27]} Rf8 {[%emt 0:01:13][%cal Ba8f8,Bf8f7,Bf7g7][%mdl 32] And now ...Rxf3 would win.} 31. Kh1 {[%emt 0:01:43]} Qf6 {[%emt 0:01:38] aiming for ...Qh4+.} 32. Rf1 {[%emt 0:02:06]} h4 {[%emt 0:01:09]} 33. Ba3 {[%emt 0:01:28]} Rff7 {[%emt 0:00:09] Threatens to win with ...Rg3.} 34. Bc5 {[%emt 0:01:45]} Qg6 {[%emt 0:02:39]} 35. Bg1 {[%emt 0:01:16]} Qh5 {[%emt 0:02:15]} 36. Kh2 {[%emt 0:04:45]} Rg3 {[%emt 0:02:12]} 37. Bf2 $1 {[%emt 0:02:22]} Rfg7 {[%emt 0:01:13]} 38. Be1 $1 {[%emt 0:01:01]} Kh7 {[%emt 0:01:21] [#]} 39. Rh1 $1 $16 {[%emt 0:00:36]} R3g6 {[%emt 0:05:17]} 40. g4 {[%emt 0:03:12]} (40. Qe2 $16) 40... hxg3+ $1 $11 {[%emt 0:00:23]} 41. Kg1 {[%emt 0:00:50] The board is on fire.} Qxh1+ 42. Kxh1 {[%emt 0:00:01]} Rh6+ {[%emt 0:01:59]} 43. Kg1 {[%emt 0:00:17][%cal Bh1g1,Bg1h2,Bh2g2,Bg2f2,Bf2e2,Be2d3][%mdl 32]} Rh2 {[%emt 0:00:43]} 44. Qxh2+ {[%emt 0:01:45]} gxh2+ {[%emt 0:02:03]} 45. Kxh2 {[%mdl 4096] Endgame KRB-KRN} Rd7 {[%emt 0:00:00]} 46. Rb2 {[%emt 0:00:34]} Kg6 {[%emt 0:00:00]} 47. Kg2 {[%emt 0:01:00]} Na5 {[%emt 0:00:00]} 48. Rb4 {[%emt 0:00:39]} Kf7 {[%emt 0:00:29]} 49. Kf2 {[%emt 0:00:17]} Ke7 {[%emt 0:00:20]} 50. Ke2 {[%emt 0:00:08]} Kd6 {[%emt 0:00:23]} 51. Bg3 {[%emt 0:01:00]} Rg7 {[%emt 0:00:31]} (51... Nc6 $11 52. Rb2 Kc5) 52. Rd4+ $1 $14 {[%emt 0:00:42]} Kc5 {[%emt 0:00:55]} 53. Bxe5 {[%emt 0:00:24]} Rg2+ {[%emt 0:00:15]} 54. Kd3 {[%emt 0:01:39] Strongly threatening Bc7.} b5 {[%emt 0:00:55]} 55. axb5 {[%emt 0:01:39]} axb5 {[%emt 0:00:01]} 56. Bd6+ {[%emt 0:00:56]} Kc6 {[%emt 0:00:06]} 57. e5 {[%emt 0:01:41]} Nc4 {[%emt 0:00:06]} 58. Ke4 {[%emt 0:00:36]} Re2+ {[%emt 0:00:32]} 59. Kf4 {[%emt 0:00:09]} Ne3 {[%emt 0:00:40]} 60. Kg5 {[%emt 0:00:26]} Nd5 {[%emt 0:00:03]} 61. c4 {[%emt 0:00:37]} Rg2+ {[%emt 0:00:14]} 62. Kh5 {[%emt 0:00:24]} bxc4 {[%emt 0:00:20]} 63. Rxc4+ {[%emt 0:00:04]} Kd7 {[%emt 0:00:03]} 64. Ra4 {[%emt 0:00:54]} Rg3 {[%emt 0:01:07]} 65. f4 {[%emt 0:00:24]} Rg2 {[%emt 0:01:59]} 66. Rd4 {[%emt 0:00:55][%cal Of4f5]} Kc6 {[%emt 0:00:10]} 67. Rc4+ {[%emt 0:00:05]} Kb6 {[%emt 0:00:15]} 68. Rd4 {[%emt 0:00:47][%cal Of4f5] Black must now prevent f5!} Ne3 {[%emt 0:01:18]} 69. Kh4 {[%emt 0:00:48]} Nf5+ {[%emt 0:00:29] The position is equal.} 70. Kh3 {[%emt 0:00:01] Rb4+ is the strong threat.} Rg3+ {[%emt 0:00:18]} 71. Kh2 {[%emt 0:00:01]} Rf3 {[%emt 0:00:30]} 72. Rb4+ {[%emt 0:00:20]} Kc6 {[%emt 0:00:01]} 73. Ra4 {[%emt 0:00:26]} Rb3 {[%emt 0:01:26]} 74. Kg2 {[%emt 0:00:14]} Kd5 {[%emt 0:00:15]} 75. Kf2 {[%emt 0:00:18]} Nd4 {[%emt 0:00:16]} 76. Kg2 {[%emt 0:00:48]} Rb2+ {[%emt 0:00:48]} 77. Kg3 {[%emt 0:00:27]} Nf5+ {[%emt 0:00:44]} 78. Kf3 {[%emt 0:00:12]} Rb3+ {[%emt 0:00:06]} 79. Kf2 {[%emt 0:00:12]} Rc3 {[%emt 0:00:22]} 80. Kg2 {[%emt 0:00:39]} Rc2+ {[%emt 0:01:19]} 81. Kf3 {[%emt 0:00:41]} Rc3+ {[%emt 0:00:04]} 82. Kf2 {[%emt 0:00:25] Weighted Error Value: White=0.09 (flawless) /Black=0.11 (very precise)} 1/2-1/2